[Event "Titled Tuesday Blitz December 13 Early 2022"]
[White "Pakleza, Zbigniew"]
[Black "Gabdrakhmanov, Azat"]
[WhiteFideId "1119290"]
[BlackFideId "34189197"]
[WhiteElo "2823"]
[BlackElo "2636"]
[Result "1/2-1/2"]
[Round "05"]
[TimeControl "180+1"]
[Date "2022.12.14"]
[WhiteClock "0:00:09"]
[BlackClock "0:00:14"]

1. d4 {[%clk 0:03:00]}  Nf6 {[%clk 0:02:55]} 2. Nf3 {[%clk 0:03:00]}  g6 {[%clk 0:02:55]} 3. Bf4 {[%clk 0:03:00]}  Bg7 {[%clk 0:02:55]} 4. e3 {[%clk 0:03:01]}  O-O {[%clk 0:02:54]} 5. Be2 {[%clk 0:03:02]}  d6 {[%clk 0:02:55]} 6. h3 {[%clk 0:03:02]}  Nbd7 {[%clk 0:02:55]} 7. O-O {[%clk 0:03:03]}  c5 {[%clk 0:02:55]} 8. c3 {[%clk 0:03:03]}  b6 {[%clk 0:02:55]} 9. Nbd2 {[%clk 0:03:04]}  Bb7 {[%clk 0:02:56]} 10. a4 {[%clk 0:03:04]}  Ne4 {[%clk 0:02:54]} 11. Nxe4 {[%clk 0:03:03]}  Bxe4 {[%clk 0:02:55]} 12. a5 {[%clk 0:03:02]}  bxa5 {[%clk 0:02:51]} 13. Qa4 {[%clk 0:02:50]}  Rb8 {[%clk 0:02:45]} 14. Nd2 {[%clk 0:02:19]}  Ba8 {[%clk 0:02:16]} 15. Nc4 {[%clk 0:01:51]}  Bd5 {[%clk 0:01:14]} 16. Qxa5 {[%clk 0:01:42]}  Bxc4 {[%clk 0:01:12]} 17. Bxc4 {[%clk 0:01:43]}  Rxb2 {[%clk 0:01:09]} 18. Qxa7 {[%clk 0:01:37]}  Nb6 {[%clk 0:00:52]} 19. Ba2 {[%clk 0:01:05]}  Qa8 {[%clk 0:00:39]} 20. Bb1 {[%clk 0:00:19]}  Qxa7 {[%clk 0:00:35]} 21. Rxa7 {[%clk 0:00:20]}  Nd5 {[%clk 0:00:34]} 22. dxc5 {[%clk 0:00:16]}  dxc5 {[%clk 0:00:28]} 23. c4 {[%clk 0:00:14]}  Nxf4 {[%clk 0:00:23]} 24. exf4 {[%clk 0:00:14]}  e6 {[%clk 0:00:23]} 25. g4 {[%clk 0:00:09]}  Bd4 {[%clk 0:00:22]} 26. Kg2 {[%clk 0:00:09]}  Rd2 {[%clk 0:00:20]} 27. f5 {[%clk 0:00:08]}  Rb8 {[%clk 0:00:15]} 28. fxe6 {[%clk 0:00:07]}  fxe6 {[%clk 0:00:16]} 29. Ra2 {[%clk 0:00:03]}  Rbb2 {[%clk 0:00:11]} 30. Rxb2 {[%clk 0:00:03]}  Rxb2 {[%clk 0:00:11]} 31. Be4 {[%clk 0:00:04]}  Kg7 {[%clk 0:00:11]} 32. g5 {[%clk 0:00:04]}  Kf7 {[%clk 0:00:11]} 33. h4 {[%clk 0:00:04]}  Ke7 {[%clk 0:00:11]} 34. Kg3 {[%clk 0:00:04]}  Kd6 {[%clk 0:00:11]} 35. f3 {[%clk 0:00:03]}  Be5+ {[%clk 0:00:09]} 36. Kh3 {[%clk 0:00:02]}  Rh2+ {[%clk 0:00:07]} 37. Kg4 {[%clk 0:00:02]}  Rg2+ {[%clk 0:00:08]} 38. Kh3 {[%clk 0:00:03]}  Rg3+ {[%clk 0:00:08]} 39. Kh2 {[%clk 0:00:03]}  Rxf3+ {[%clk 0:00:09]} 40. Kg2 {[%clk 0:00:04]}  Rxf1 {[%clk 0:00:09]} 41. Kxf1 {[%clk 0:00:05]}  Bg3 {[%clk 0:00:09]} 42. h5 {[%clk 0:00:05]}  gxh5 {[%clk 0:00:05]} 43. Bxh7 {[%clk 0:00:06]}  Bh4 {[%clk 0:00:06]} 44. Bg6 {[%clk 0:00:04]}  Bxg5 {[%clk 0:00:06]} 45. Bxh5 {[%clk 0:00:05]}  Ke5 {[%clk 0:00:06]} 46. Bf7 {[%clk 0:00:05]}  Kf5 {[%clk 0:00:06]} 47. Ke2 {[%clk 0:00:05]}  e5 {[%clk 0:00:07]} 48. Bd5 {[%clk 0:00:04]}  e4 {[%clk 0:00:07]} 49. Bg8 {[%clk 0:00:04]}  Ke5 {[%clk 0:00:08]} 50. Bd5 {[%clk 0:00:04]}  Kd4 {[%clk 0:00:08]} 51. Bg8 {[%clk 0:00:05]}  e3 {[%clk 0:00:09]} 52. Bf7 {[%clk 0:00:06]}  Bf4 {[%clk 0:00:09]} 53. Bg8 {[%clk 0:00:06]}  Be5 {[%clk 0:00:10]} 54. Bf7 {[%clk 0:00:07]}  Bd6 {[%clk 0:00:11]} 55. Bg8 {[%clk 0:00:08]}  Be5 {[%clk 0:00:12]} 56. Bf7 {[%clk 0:00:09]}  Bd6 {[%clk 0:00:13]} 57. Bg8 {[%clk 0:00:09]}  Be5 {[%clk 0:00:14]} 1/2-1/2


[Site "https://www.chess.com"]

[Event "Titled Tuesday Blitz December 13 Early 2022"]
[White "Paravyan, David"]
[Black "Lortkipanidze, Nodar"]
[WhiteFideId "4194985"]
[BlackFideId "13604058"]
[WhiteElo "2551"]
[BlackElo "2293"]
[Result "0-1"]
[Round "05"]
[TimeControl "180+1"]
[Date "2022.12.13"]
[WhiteClock "0:00:02"]
[BlackClock "0:00:19"]

1. e4 {[%clk 0:03:00]}  c5 {[%clk 0:02:58]} 2. Nf3 {[%clk 0:03:00]}  d6 {[%clk 0:02:56]} 3. d4 {[%clk 0:03:01]}  cxd4 {[%clk 0:02:57]} 4. Nxd4 {[%clk 0:03:01]}  Nf6 {[%clk 0:02:58]} 5. Nc3 {[%clk 0:03:01]}  g6 {[%clk 0:02:58]} 6. Be3 {[%clk 0:03:00]}  Bg7 {[%clk 0:02:59]} 7. f3 {[%clk 0:03:01]}  O-O {[%clk 0:02:58]} 8. Qd2 {[%clk 0:03:01]}  Nc6 {[%clk 0:02:58]} 9. O-O-O {[%clk 0:02:59]}  d5 {[%clk 0:02:58]} 10. exd5 {[%clk 0:02:45]}  Nxd5 {[%clk 0:02:59]} 11. Nxc6 {[%clk 0:02:45]}  bxc6 {[%clk 0:02:58]} 12. Bd4 {[%clk 0:02:44]}  e5 {[%clk 0:02:57]} 13. Bc5 {[%clk 0:02:44]}  Be6 {[%clk 0:02:58]} 14. Bc4 {[%clk 0:02:39]}  Qh4 {[%clk 0:02:46]} 15. Bxd5 {[%clk 0:01:50]}  cxd5 {[%clk 0:02:45]} 16. Bxf8 {[%clk 0:01:49]}  Rxf8 {[%clk 0:02:38]} 17. Kb1 {[%clk 0:00:52]}  Rd8 {[%clk 0:02:07]} 18. Rhe1 {[%clk 0:00:44]}  Qc4 {[%clk 0:02:00]} 19. Qd3 {[%clk 0:00:30]}  Qc7 {[%clk 0:01:42]} 20. Qa6 {[%clk 0:00:26]}  d4 {[%clk 0:01:38]} 21. Nb5 {[%clk 0:00:24]}  Qc4 {[%clk 0:01:36]} 22. b3 {[%clk 0:00:23]}  Qc5 {[%clk 0:01:29]} 23. a4 {[%clk 0:00:16]}  Bf5 {[%clk 0:01:27]} 24. Re4 {[%clk 0:00:14]}  Rc8 {[%clk 0:01:20]} 25. Rc1 {[%clk 0:00:06]}  Bxe4 {[%clk 0:01:18]} 26. fxe4 {[%clk 0:00:07]}  d3 {[%clk 0:01:15]} 27. Qxa7 {[%clk 0:00:05]}  d2 {[%clk 0:01:13]} 28. Qxc5 {[%clk 0:00:05]}  dxc1=Q+ {[%clk 0:01:13]} 29. Kxc1 {[%clk 0:00:06]}  Rxc5 {[%clk 0:01:13]} 30. c4 {[%clk 0:00:07]}  Bf8 {[%clk 0:01:05]} 31. Kc2 {[%clk 0:00:07]}  f5 {[%clk 0:01:00]} 32. a5 {[%clk 0:00:04]}  Rc6 {[%clk 0:00:56]} 33. Kc3 {[%clk 0:00:04]}  fxe4 {[%clk 0:00:56]} 34. b4 {[%clk 0:00:03]}  e3 {[%clk 0:00:56]} 35. Na3 {[%clk 0:00:04]}  e4 {[%clk 0:00:49]} 36. Nc2 {[%clk 0:00:04]}  Bg7+ {[%clk 0:00:49]} 37. Kb3 {[%clk 0:00:04]}  e2 {[%clk 0:00:49]} 38. c5 {[%clk 0:00:03]}  Bh6 {[%clk 0:00:31]} 39. Kc4 {[%clk 0:00:02]}  Bd2 {[%clk 0:00:31]} 40. b5 {[%clk 0:00:01]}  e1=Q {[%clk 0:00:25]} 41. Nxe1 {[%clk 0:00:01]}  Bxe1 {[%clk 0:00:26]} 42. bxc6 {[%clk 0:00:01]}  Bxa5 {[%clk 0:00:27]} 43. Kd4 {[%clk 0:00:02]}  Kf7 {[%clk 0:00:27]} 44. Kxe4 {[%clk 0:00:02]}  Ke6 {[%clk 0:00:27]} 45. h4 {[%clk 0:00:01]}  h6 {[%clk 0:00:21]} 46. g4 {[%clk 0:00:01]}  Bd8 {[%clk 0:00:21]} 47. h5 {[%clk 0:00:02]}  g5 {[%clk 0:00:19]} 48. Kd4 {[%clk 0:00:02]}  Bc7 {[%clk 0:00:19]} 0-1


[Site "https://www.chess.com"]

[Event "Titled Tuesday Blitz December 13 Early 2022"]
[White "Pham, Khoi"]
[Black "Kostiukov, Alexandr"]
[WhiteFideId "1054988"]
[BlackFideId "14108100"]
[WhiteElo "2536"]
[BlackElo "2202"]
[Result "1/2-1/2"]
[Round "05"]
[TimeControl "180+1"]
[Date "2022.12.14"]
[WhiteClock "0:00:07"]
[BlackClock "0:00:09"]

1. e4 {[%clk 0:02:31]}  c5 {[%clk 0:02:58]} 2. Nf3 {[%clk 0:02:30]}  g6 {[%clk 0:02:58]} 3. d4 {[%clk 0:02:29]}  cxd4 {[%clk 0:02:57]} 4. Qxd4 {[%clk 0:02:30]}  Nf6 {[%clk 0:02:56]} 5. e5 {[%clk 0:02:28]}  Nc6 {[%clk 0:02:54]} 6. Qa4 {[%clk 0:02:27]}  Nd5 {[%clk 0:02:52]} 7. Bd3 {[%clk 0:02:04]}  Bg7 {[%clk 0:02:42]} 8. Qe4 {[%clk 0:02:03]}  Ndb4 {[%clk 0:02:39]} 9. O-O {[%clk 0:02:02]}  O-O {[%clk 0:02:29]} 10. Nc3 {[%clk 0:02:00]}  d5 {[%clk 0:02:27]} 11. exd6 {[%clk 0:01:57]}  exd6 {[%clk 0:02:25]} 12. Bg5 {[%clk 0:01:55]}  Qa5 {[%clk 0:02:20]} 13. a3 {[%clk 0:01:29]}  Nxd3 {[%clk 0:02:18]} 14. Qxd3 {[%clk 0:01:30]}  Bf5 {[%clk 0:02:12]} 15. Qd2 {[%clk 0:01:24]}  Bg4 {[%clk 0:02:03]} 16. b4 {[%clk 0:01:15]}  Qf5 {[%clk 0:01:53]} 17. Nh4 {[%clk 0:01:14]}  Qe5 {[%clk 0:01:48]} 18. Nd5 {[%clk 0:01:06]}  Be6 {[%clk 0:01:38]} 19. Rad1 {[%clk 0:00:55]}  h6 {[%clk 0:01:10]} 20. Bxh6 {[%clk 0:00:31]}  Bxh6 {[%clk 0:01:06]} 21. Qxh6 {[%clk 0:00:32]}  Bxd5 {[%clk 0:01:06]} 22. Nxg6 {[%clk 0:00:33]}  Qg7 {[%clk 0:00:48]} 23. Qxg7+ {[%clk 0:00:21]}  Kxg7 {[%clk 0:00:48]} 24. Rxd5 {[%clk 0:00:22]}  fxg6 {[%clk 0:00:45]} 25. Rxd6 {[%clk 0:00:22]}  Rad8 {[%clk 0:00:44]} 26. Rfd1 {[%clk 0:00:17]}  Rxd6 {[%clk 0:00:44]} 27. Rxd6 {[%clk 0:00:18]}  Rd8 {[%clk 0:00:44]} 28. Rxd8 {[%clk 0:00:18]}  Nxd8 {[%clk 0:00:44]} 29. Kf1 {[%clk 0:00:19]}  b5 {[%clk 0:00:43]} 30. Ke2 {[%clk 0:00:19]}  Kf6 {[%clk 0:00:39]} 31. Kd3 {[%clk 0:00:19]}  Nc6 {[%clk 0:00:37]} 32. c4 {[%clk 0:00:19]}  Ne5+ {[%clk 0:00:37]} 33. Kd4 {[%clk 0:00:19]}  Nxc4 {[%clk 0:00:38]} 34. a4 {[%clk 0:00:18]}  a6 {[%clk 0:00:35]} 35. a5 {[%clk 0:00:16]}  Kf5 {[%clk 0:00:27]} 36. Kc5 {[%clk 0:00:11]}  Nxa5 {[%clk 0:00:24]} 37. bxa5 {[%clk 0:00:11]}  Kf4 {[%clk 0:00:23]} 38. Kd4 {[%clk 0:00:08]}  Kf5 {[%clk 0:00:23]} 39. f3 {[%clk 0:00:07]}  Kf4 {[%clk 0:00:21]} 40. Kd3 {[%clk 0:00:07]}  Ke5 {[%clk 0:00:21]} 41. g3 {[%clk 0:00:07]}  Kd5 {[%clk 0:00:20]} 42. h4 {[%clk 0:00:07]}  Ke5 {[%clk 0:00:21]} 43. Ke3 {[%clk 0:00:07]}  Kf5 {[%clk 0:00:20]} 44. g4+ {[%clk 0:00:07]}  Ke5 {[%clk 0:00:20]} 45. f4+ {[%clk 0:00:06]}  Kf6 {[%clk 0:00:20]} 46. Ke4 {[%clk 0:00:06]}  Ke6 {[%clk 0:00:20]} 47. h5 {[%clk 0:00:05]}  gxh5 {[%clk 0:00:19]} 48. gxh5 {[%clk 0:00:06]}  Kf6 {[%clk 0:00:18]} 49. f5 {[%clk 0:00:05]}  Kg5 {[%clk 0:00:16]} 50. Ke5 {[%clk 0:00:04]}  b4 {[%clk 0:00:10]} 51. f6 {[%clk 0:00:04]}  b3 {[%clk 0:00:09]} 52. f7 {[%clk 0:00:03]}  b2 {[%clk 0:00:09]} 53. f8=Q {[%clk 0:00:03]}  b1=Q {[%clk 0:00:09]} 54. Qg7+ {[%clk 0:00:01]}  Kh4 {[%clk 0:00:09]} 55. Qf6+ {[%clk 0:00:01]}  Kxh5 {[%clk 0:00:07]} 56. Qf5+ {[%clk 0:00:01]}  Qxf5+ {[%clk 0:00:06]} 57. Kxf5 {[%clk 0:00:02]}  Kh6 {[%clk 0:00:06]} 58. Ke6 {[%clk 0:00:03]}  Kg6 {[%clk 0:00:06]} 59. Kd6 {[%clk 0:00:04]}  Kf6 {[%clk 0:00:07]} 60. Kc6 {[%clk 0:00:05]}  Ke6 {[%clk 0:00:07]} 61. Kb6 {[%clk 0:00:06]}  Kd6 {[%clk 0:00:07]} 62. Kb7 {[%clk 0:00:07]}  Kd7 {[%clk 0:00:08]} 63. Kxa6 {[%clk 0:00:07]}  Kc7 {[%clk 0:00:07]} 64. Ka7 {[%clk 0:00:07]}  Kc8 {[%clk 0:00:08]} 65. Ka8 {[%clk 0:00:06]}  Kc7 {[%clk 0:00:08]} 66. a6 {[%clk 0:00:07]}  Kc8 {[%clk 0:00:08]} 67. a7 {[%clk 0:00:07]}  Kc7 {[%clk 0:00:09]} 1/2-1/2


[Site "https://www.chess.com"]

[Event "Titled Tuesday Blitz December 13 Early 2022"]
[White "Piorun, Kacper"]
[Black "Matinian, Nikita"]
[WhiteFideId "1130420"]
[BlackFideId "24129100"]
[WhiteElo "2572"]
[BlackElo "2422"]
[Result "1-0"]
[Round "05"]
[TimeControl "180+1"]
[Date "2022.12.13"]
[WhiteClock "0:00:05"]
[BlackClock "0:00:01"]

1. d4 {[%clk 0:03:00]}  Nf6 {[%clk 0:02:58]} 2. Bg5 {[%clk 0:03:01]}  g6 {[%clk 0:02:57]} 3. Bxf6 {[%clk 0:02:58]}  exf6 {[%clk 0:02:58]} 4. Nf3 {[%clk 0:02:57]}  d5 {[%clk 0:02:58]} 5. e3 {[%clk 0:02:58]}  c6 {[%clk 0:02:57]} 6. c4 {[%clk 0:02:58]}  Be6 {[%clk 0:02:57]} 7. cxd5 {[%clk 0:02:56]}  cxd5 {[%clk 0:02:55]} 8. Nc3 {[%clk 0:02:56]}  Nc6 {[%clk 0:02:55]} 9. g3 {[%clk 0:02:51]}  h5 {[%clk 0:02:53]} 10. Bg2 {[%clk 0:02:49]}  Be7 {[%clk 0:02:48]} 11. Rc1 {[%clk 0:02:44]}  Qd7 {[%clk 0:02:39]} 12. a3 {[%clk 0:02:44]}  f5 {[%clk 0:02:29]} 13. h4 {[%clk 0:02:36]}  f6 {[%clk 0:02:26]} 14. Nd2 {[%clk 0:02:29]}  Kf7 {[%clk 0:02:21]} 15. Na4 {[%clk 0:02:03]}  b6 {[%clk 0:02:18]} 16. Bf1 {[%clk 0:02:00]}  Rac8 {[%clk 0:02:11]} 17. Ba6 {[%clk 0:01:58]}  Rc7 {[%clk 0:02:11]} 18. Nc3 {[%clk 0:01:56]}  Na5 {[%clk 0:02:05]} 19. b4 {[%clk 0:01:44]}  Nb7 {[%clk 0:01:58]} 20. Ne2 {[%clk 0:01:19]}  Nd6 {[%clk 0:01:48]} 21. Bd3 {[%clk 0:01:08]}  Rxc1 {[%clk 0:01:37]} 22. Qxc1 {[%clk 0:01:08]}  Rc8 {[%clk 0:01:34]} 23. Qd1 {[%clk 0:01:06]}  Qc7 {[%clk 0:01:31]} 24. Nf4 {[%clk 0:01:05]}  Qc3 {[%clk 0:01:27]} 25. O-O {[%clk 0:00:47]}  Qxa3 {[%clk 0:01:27]} 26. Be2 {[%clk 0:00:47]}  Rh8 {[%clk 0:01:21]} 27. Qb1 {[%clk 0:00:33]}  Ne4 {[%clk 0:01:01]} 28. Nxe4 {[%clk 0:00:27]}  fxe4 {[%clk 0:01:02]} 29. b5 {[%clk 0:00:23]}  Bd6 {[%clk 0:00:39]} 30. Nxe6 {[%clk 0:00:20]}  Kxe6 {[%clk 0:00:40]} 31. Rc1 {[%clk 0:00:18]}  Kd7 {[%clk 0:00:36]} 32. Rc6 {[%clk 0:00:16]}  Rc8 {[%clk 0:00:34]} 33. Qc2 {[%clk 0:00:15]}  Rd8 {[%clk 0:00:13]} 34. Kg2 {[%clk 0:00:12]}  Qb4 {[%clk 0:00:11]} 35. Qa2 {[%clk 0:00:10]}  Ke6 {[%clk 0:00:04]} 36. Qxa7 {[%clk 0:00:09]}  Qd2 {[%clk 0:00:04]} 37. Qxb6 {[%clk 0:00:07]}  Qxe2 {[%clk 0:00:03]} 38. Qxd8 {[%clk 0:00:06]}  Qf3+ {[%clk 0:00:03]} 39. Kg1 {[%clk 0:00:06]}  Kf5 {[%clk 0:00:01]} 40. Qd7# {[%clk 0:00:05]} 1-0


[Site "https://www.chess.com"]

[Event "Titled Tuesday Blitz December 13 Early 2022"]
[White "Postnikov, Artem"]
[Black "Yuan, Qingyu"]
[WhiteFideId "34153575"]
[BlackFideId "8609772"]
[WhiteElo "2243"]
[BlackElo "2359"]
[Result "0-1"]
[Round "05"]
[TimeControl "180+1"]
[Date "2022.12.14"]
[WhiteClock "0:00:01"]
[BlackClock "0:00:12"]

1. d4 {[%clk 0:03:00]}  Nf6 {[%clk 0:02:59]} 2. c4 {[%clk 0:03:00]}  e6 {[%clk 0:03:00]} 3. Nc3 {[%clk 0:03:01]}  Bb4 {[%clk 0:03:00]} 4. Qc2 {[%clk 0:03:01]}  O-O {[%clk 0:03:00]} 5. a3 {[%clk 0:03:01]}  Bxc3+ {[%clk 0:03:00]} 6. Qxc3 {[%clk 0:03:02]}  d5 {[%clk 0:03:01]} 7. Bg5 {[%clk 0:03:02]}  c5 {[%clk 0:03:01]} 8. cxd5 {[%clk 0:02:19]}  cxd4 {[%clk 0:02:48]} 9. Qxd4 {[%clk 0:02:19]}  Nc6 {[%clk 0:02:45]} 10. Qh4 {[%clk 0:02:19]}  Qxd5 {[%clk 0:02:29]} 11. Bxf6 {[%clk 0:02:14]}  gxf6 {[%clk 0:02:29]} 12. Nf3 {[%clk 0:01:55]}  Qf5 {[%clk 0:01:46]} 13. g3 {[%clk 0:01:33]}  e5 {[%clk 0:01:40]} 14. Bg2 {[%clk 0:01:26]}  Be6 {[%clk 0:01:40]} 15. O-O {[%clk 0:01:22]}  Rfd8 {[%clk 0:01:40]} 16. Rfd1 {[%clk 0:00:59]}  a5 {[%clk 0:01:39]} 17. Qa4 {[%clk 0:00:51]}  Qg4 {[%clk 0:00:56]} 18. Qb5 {[%clk 0:00:38]}  e4 {[%clk 0:00:34]} 19. Qxb7 {[%clk 0:00:19]}  Rac8 {[%clk 0:00:27]} 20. Nh4 {[%clk 0:00:12]}  Rxd1+ {[%clk 0:00:22]} 21. Rxd1 {[%clk 0:00:13]}  Qxe2 {[%clk 0:00:22]} 22. Rf1 {[%clk 0:00:13]}  f5 {[%clk 0:00:21]} 23. Bh3 {[%clk 0:00:09]}  Nd4 {[%clk 0:00:21]} 24. Bg2 {[%clk 0:00:03]}  Kg7 {[%clk 0:00:20]} 25. Qb6 {[%clk 0:00:03]}  Qd2 {[%clk 0:00:17]} 26. Qa6 {[%clk 0:00:01]}  Rc1 {[%clk 0:00:12]} 0-1


[Site "https://www.chess.com"]

[Event "Titled Tuesday Blitz December 13 Early 2022"]
[White "Putnam, Liam"]
[Black "Osmak, Yuliia"]
[WhiteFideId "30938279"]
[BlackFideId "14101602"]
[WhiteElo "2756"]
[BlackElo "2555"]
[Result "1-0"]
[Round "05"]
[TimeControl "180+1"]
[Date "2022.12.14"]
[WhiteClock "0:00:22"]
[BlackClock "0:00:02"]

1. e4 {[%clk 0:03:00]}  c6 {[%clk 0:02:55]} 2. d4 {[%clk 0:02:55]}  d5 {[%clk 0:02:55]} 3. exd5 {[%clk 0:02:56]}  cxd5 {[%clk 0:02:51]} 4. Bd3 {[%clk 0:02:56]}  Nc6 {[%clk 0:02:50]} 5. c3 {[%clk 0:02:56]}  Nf6 {[%clk 0:02:49]} 6. h3 {[%clk 0:02:56]}  g6 {[%clk 0:02:47]} 7. Nf3 {[%clk 0:02:55]}  Bf5 {[%clk 0:02:46]} 8. O-O {[%clk 0:02:56]}  Bg7 {[%clk 0:02:43]} 9. Re1 {[%clk 0:02:51]}  Bxd3 {[%clk 0:02:40]} 10. Qxd3 {[%clk 0:02:51]}  O-O {[%clk 0:02:40]} 11. Bf4 {[%clk 0:02:43]}  Rc8 {[%clk 0:02:37]} 12. Nbd2 {[%clk 0:02:42]}  e6 {[%clk 0:02:34]} 13. a4 {[%clk 0:02:31]}  Nd7 {[%clk 0:02:27]} 14. b4 {[%clk 0:02:26]}  Re8 {[%clk 0:02:18]} 15. Re2 {[%clk 0:02:04]}  e5 {[%clk 0:02:11]} 16. dxe5 {[%clk 0:02:05]}  Ndxe5 {[%clk 0:02:10]} 17. Nxe5 {[%clk 0:02:04]}  Nxe5 {[%clk 0:02:07]} 18. Bxe5 {[%clk 0:01:57]}  Rxe5 {[%clk 0:02:06]} 19. Rxe5 {[%clk 0:01:52]}  Bxe5 {[%clk 0:02:07]} 20. Rc1 {[%clk 0:01:48]}  Qd7 {[%clk 0:01:48]} 21. a5 {[%clk 0:01:39]}  Qc7 {[%clk 0:01:27]} 22. c4 {[%clk 0:01:23]}  dxc4 {[%clk 0:00:45]} 23. Qxc4 {[%clk 0:01:11]}  Qxc4 {[%clk 0:00:27]} 24. Rxc4 {[%clk 0:01:12]}  Rxc4 {[%clk 0:00:20]} 25. Nxc4 {[%clk 0:01:12]}  Bc3 {[%clk 0:00:20]} 26. b5 {[%clk 0:01:11]}  a6 {[%clk 0:00:20]} 27. Nd6 {[%clk 0:00:50]}  axb5 {[%clk 0:00:12]} 28. Nxb7 {[%clk 0:00:50]}  b4 {[%clk 0:00:11]} 29. Nc5 {[%clk 0:00:30]}  Bd4 {[%clk 0:00:11]} 30. Nb3 {[%clk 0:00:30]}  Ba7 {[%clk 0:00:11]} 31. Kf1 {[%clk 0:00:30]}  f5 {[%clk 0:00:07]} 32. Ke2 {[%clk 0:00:31]}  Kf7 {[%clk 0:00:07]} 33. Kd3 {[%clk 0:00:29]}  Ke6 {[%clk 0:00:04]} 34. Kc4 {[%clk 0:00:28]}  Bxf2 {[%clk 0:00:03]} 35. Kxb4 {[%clk 0:00:28]}  Kd5 {[%clk 0:00:03]} 36. Kb5 {[%clk 0:00:25]}  g5 {[%clk 0:00:02]} 37. a6 {[%clk 0:00:25]}  h5 {[%clk 0:00:02]} 38. Nc1 {[%clk 0:00:22]}  g4 {[%clk 0:00:02]} 39. Nd3 {[%clk 0:00:22]}  Be3 {[%clk 0:00:02]} 40. Nf4+ {[%clk 0:00:22]} 1-0


[Site "https://www.chess.com"]

[Event "Titled Tuesday Blitz December 13 Early 2022"]
[White "Qashashvili, Alexandre"]
[Black "Diaz Rosas, Julio Cesar"]
[WhiteFideId "13600842"]
[BlackFideId "5105099"]
[WhiteElo "2405"]
[BlackElo "2246"]
[Result "0-1"]
[Round "05"]
[TimeControl "180+1"]
[Date "2022.12.14"]
[WhiteClock "0:00:03"]
[BlackClock "0:00:52"]

1. e4 {[%clk 0:02:48]}  c6 {[%clk 0:02:56]} 2. d4 {[%clk 0:02:44]}  d5 {[%clk 0:02:57]} 3. Nc3 {[%clk 0:02:38]}  dxe4 {[%clk 0:02:55]} 4. Nxe4 {[%clk 0:02:39]}  Nf6 {[%clk 0:02:55]} 5. Nxf6+ {[%clk 0:02:38]}  gxf6 {[%clk 0:02:56]} 6. Nf3 {[%clk 0:02:37]}  Rg8 {[%clk 0:02:55]} 7. Bd3 {[%clk 0:02:37]}  Rxg2 {[%clk 0:02:53]} 8. Bxh7 {[%clk 0:02:36]}  Bg4 {[%clk 0:02:47]} 9. h3 {[%clk 0:02:32]}  Bh5 {[%clk 0:02:44]} 10. Be4 {[%clk 0:02:31]}  Qd6 {[%clk 0:02:40]} 11. Be3 {[%clk 0:02:24]}  f5 {[%clk 0:02:07]} 12. Bxf5 {[%clk 0:02:16]}  Qd5 {[%clk 0:02:07]} 13. Bg4 {[%clk 0:02:13]}  Rxg4 {[%clk 0:02:07]} 14. hxg4 {[%clk 0:02:14]}  Bxg4 {[%clk 0:02:07]} 15. Rh4 {[%clk 0:00:53]}  Bxf3 {[%clk 0:02:02]} 16. c4 {[%clk 0:00:50]}  Bxd1 {[%clk 0:01:55]} 17. cxd5 {[%clk 0:00:45]}  Bf3 {[%clk 0:01:54]} 18. dxc6 {[%clk 0:00:38]}  Nxc6 {[%clk 0:01:53]} 19. Kd2 {[%clk 0:00:36]}  O-O-O {[%clk 0:01:49]} 20. Rg1 {[%clk 0:00:31]}  e5 {[%clk 0:01:45]} 21. Bg5 {[%clk 0:00:26]}  Rxd4+ {[%clk 0:01:28]} 22. Ke3 {[%clk 0:00:22]}  Bd5 {[%clk 0:01:22]} 23. Rh8 {[%clk 0:00:13]}  Re4+ {[%clk 0:01:07]} 24. Kd2 {[%clk 0:00:10]}  Kd7 {[%clk 0:01:00]} 25. Rxf8 {[%clk 0:00:07]}  Nd4 {[%clk 0:01:00]} 26. Be3 {[%clk 0:00:06]}  Nf3+ {[%clk 0:00:59]} 27. Kd3 {[%clk 0:00:03]}  Nxg1 {[%clk 0:01:00]} 28. f3 {[%clk 0:00:03]}  Nxf3 {[%clk 0:00:59]} 29. Rxf7+ {[%clk 0:00:03]}  Bxf7 {[%clk 0:00:58]} 30. Kxe4 {[%clk 0:00:04]}  Bh5 {[%clk 0:00:55]} 31. Bxa7 {[%clk 0:00:01]}  Ke6 {[%clk 0:00:54]} 32. Ke3 {[%clk 0:00:01]}  Kd5 {[%clk 0:00:53]} 33. Bb8 {[%clk 0:00:02]}  e4 {[%clk 0:00:53]} 34. b4 {[%clk 0:00:03]}  Nd4 {[%clk 0:00:53]} 35. a4 {[%clk 0:00:03]}  Nc2+ {[%clk 0:00:53]} 36. Kf4 {[%clk 0:00:03]}  Nxb4 {[%clk 0:00:54]} 37. a5 {[%clk 0:00:02]}  Be8 {[%clk 0:00:53]} 38. Bc7 {[%clk 0:00:02]}  Bb5 {[%clk 0:00:53]} 39. Bb6 {[%clk 0:00:03]}  Nc6 {[%clk 0:00:53]} 40. Ke3 {[%clk 0:00:04]}  Ne5 {[%clk 0:00:53]} 41. Ba7 {[%clk 0:00:03]}  Nc4+ {[%clk 0:00:52]} 0-1


[Site "https://www.chess.com"]

[Event "Titled Tuesday Blitz December 13 Early 2022"]
[White "Ramu, K."]
[Black "Mohammed, Dilshad"]
[WhiteFideId "5006171"]
[BlackFideId "5050421"]
[WhiteElo "2110"]
[BlackElo "2102"]
[Result "0-1"]
[Round "05"]
[TimeControl "180+1"]
[Date "2022.12.14"]
[WhiteClock "0:01:14"]
[BlackClock "0:02:21"]

1. e4 {[%clk 0:03:00]}  e5 {[%clk 0:02:59]} 2. f4 {[%clk 0:03:00]}  exf4 {[%clk 0:02:59]} 3. Bc4 {[%clk 0:02:59]}  d5 {[%clk 0:02:59]} 4. Bxd5 {[%clk 0:02:58]}  Nf6 {[%clk 0:02:59]} 5. Nc3 {[%clk 0:02:56]}  Bb4 {[%clk 0:02:57]} 6. Bb3 {[%clk 0:02:35]}  Bxc3 {[%clk 0:02:57]} 7. dxc3 {[%clk 0:02:33]}  Qxd1+ {[%clk 0:02:54]} 8. Kxd1 {[%clk 0:02:33]}  Nxe4 {[%clk 0:02:54]} 9. Nh3 {[%clk 0:02:20]}  Bxh3 {[%clk 0:02:54]} 10. Re1 {[%clk 0:02:18]}  Bg4+ {[%clk 0:02:51]} 11. Re2 {[%clk 0:02:14]}  Nc6 {[%clk 0:02:43]} 12. Ke1 {[%clk 0:02:11]}  Bxe2 {[%clk 0:02:43]} 13. Kxe2 {[%clk 0:02:10]}  O-O-O {[%clk 0:02:41]} 14. Bxf4 {[%clk 0:02:02]}  Rhe8 {[%clk 0:02:41]} 15. Kf3 {[%clk 0:01:59]}  Nd2+ {[%clk 0:02:36]} 16. Bxd2 {[%clk 0:01:56]}  Rxd2 {[%clk 0:02:37]} 17. Kg4 {[%clk 0:01:44]}  Ne5+ {[%clk 0:02:32]} 18. Kg3 {[%clk 0:01:39]}  Rd6 {[%clk 0:02:27]} 19. Bxf7 {[%clk 0:01:36]}  Nxf7 {[%clk 0:02:27]} 20. Rf1 {[%clk 0:01:23]}  Re3+ {[%clk 0:02:22]} 21. Kg4 {[%clk 0:01:20]}  Rg6+ {[%clk 0:02:21]} 22. Kf4 {[%clk 0:01:17]}  Rf6+ {[%clk 0:02:20]} 23. Kxe3 {[%clk 0:01:17]}  Rxf1 {[%clk 0:02:21]} 24. c4 {[%clk 0:01:14]} 0-1


[Site "https://www.chess.com"]